Cogmind - Beta 14 @@@ ROGUE MODE // 2025.01.15 @ 14:31:27 Player: muesli Result: Destroyed by Y-54 Guardian with Gatling Laser Performance ------------- Evolutions (3) 1500 Regions Visited (4) 800 Robots Destroyed (39) 195 Value Destroyed (1137) 1137 Prototype IDs (1) 20 Alien Tech Used (0) 0 Bonus (105) 105 TOTAL SCORE: 3757 Bonus ------- Follower Combat Kills 105 Cogmind --------- Core Integrity 0/700 Matter 231/300 Energy 100/100 System Corruption 0% Temperature Cool (24) Movement Core (400) Ox7 Location -7/Factory Parts ------- > --- POWER (1) -------- (None) > --- PROPULSION (4) --- (None) > --- UTILITY (4) ------ Large Storage Unit Improved Signal Interpreter > --- WEAPON (4) ------- Power Maul > --- INVENTORY (15) --- Ion Engine Cooled Ion Engine Cooled Ion Engine Aluminum Leg Large Storage Unit Improved Terrain Scanner Reaction Control System Peak State ------------ > --- POWER ------------ Cooled Ion Engine > --- PROPULSION ------- Improved Aluminum Leg Improved Aluminum Leg Titanium Leg > --- UTILITY ---------- Large Storage Unit Improved Signal Interpreter Terrain Scan Processor > --- WEAPON ----------- Katana > --- INVENTORY -------- Ion Engine Cooled Ion Engine Cooled Ion Engine Aluminum Leg Large Storage Unit Improved Terrain Scanner Light Assault Rifle Grenade Launcher [Rating: 20] Favorites ----------- Power Cooled Ion Engine Engine Cooled Ion Engine Propulsion Aluminum Leg Treads Light Treads Leg Aluminum Leg Wheel Wheel Utility Large Storage Unit Device Structural Scanner Storage Large Storage Unit Processor Terrain Scan Processor Weapon Light Cannon Ballistic Gun Light Assault Rifle Ballistic Cannon Light Cannon Launcher Grenade Launcher Impact Weapon Power Maul Slashing Weapon Katana Build | -11 -10 -9 -8 -7 ------- Run | Yrd Mat Mat Mat Fac Slots Evolved 6 | . . 2 2 2 Power . | . . . . . Propulsion 2 | . . 1 . 1 Utility 2 | . . 1 . 1 Weapon 2 | . . . 2 . Parts Attached 34 | . 7 13 7 7 Power 4 | . 1 2 1 . Engine 4 | . 1 2 1 . Core . | . . . . . Reactor . | . . . . . Propulsion 16 | . 2 6 4 4 Treads 1 | . . 1 . . Leg 13 | . 2 3 4 4 Wheel 2 | . . 2 . . Hover . | . . . . . Flight . | . . . . . Utility 5 | . 2 2 1 . Device 1 | . 1 . . . Storage 2 | . 1 1 . . Processor 2 | . . 1 1 . Hackware . | . . . . . Protection . | . . . . . Artifact . | . . . . . Weapon 9 | . 2 3 1 3 Energy Gun . | . . . . . Energy Cannon . | . . . . . Ballistic Gun 4 | . . 3 . 1 Ballistic Cannon 2 | . 2 . . . Launcher 1 | . . . . 1 Special Weapon . | . . . . . Impact Weapon 1 | . . . . 1 Slashing Weapon 1 | . . . 1 . Piercing Weapon . | . . . . . Special Melee Weapon . | . . . . . Unidentified Prototypes 1 | . . 1 . . Parts Lost 24 | . . 8 4 12 Power 3 | . . 1 1 1 Propulsion 14 | . . 5 2 7 Utility 1 | . . . . 1 Weapon 6 | . . 2 1 3 Highest Loss Streak 7 | . . 4 3 7 To Critical Strikes . | . . . . . Average Slot Usage (%) 76 | . 96 85 66 50 Engine 9 | . 14 11 5 4 Leg 19 | . 28 16 21 15 Wheel 1 | . . 4 . . Device 7 | . 11 11 2 . Storage 10 | . 14 11 9 7 Processor 9 | . . 8 15 14 Ballistic Gun 6 | . 23 2 3 1 Ballistic Cannon 8 | . 4 19 . . Slashing Weapon 2 | . . . 7 4 Peak Build Rating 20 | . 8 13 20 20 Average Rating 12 | . 7 10 15 16 On Entrance 10 | 6 6 8 13 20 Naked Turns . | . . . . . Heaviest Build 35 | 11 32 35 33 31 Greatest Support 50 | 20 20 30 43 50 Greatest Overweight (x) 10 | . 1 10 10 10 Average Overweight (x) . | . . 1 . . Largest Inventory Capacity 15 | . 15 15 15 15 Average Capacity 14 | . 10 15 15 15 Most Carried 12 | . 11 12 9 9 Average Carried 8 | . 8 8 6 8 Final Capacity 15 | 8 15 15 15 15 Final Carried 11 | 6 11 6 9 7 Class Distribution -------------------- 71% | Mutant 28% | Scavenger-Mutant Dominant Class ---------------- Mutant | -10/Materials Mutant | -9/Materials Scavenger-Mutant | -8/Materials Scavenger-Mutant | -7/Factory Resources | -11 -10 -9 -8 -7 ----------- Run | Yrd Mat Mat Mat Fac Matter Collected 994 | 199 95 475 191 34 Remotely . | . . . . . Salvage Created 988 | . 137 417 265 169 Parts 58 | . 6 35 12 5 Haulers Intercepted . | . . . . . Recyclers Shooed . | . . . . . Parts Field Recycled . | . . . . . Retrieved Matter . | . . . . . Parts Self-Destructed . | . . . . . Prevented . | . . . . . Kills | -11 -10 -9 -8 -7 ------- Run | Yrd Mat Mat Mat Fac Combat Hostiles Destroyed 35 | . 5 18 6 6 Melee 7 | . . . 4 3 Guns 8 | . 3 2 2 1 Cannons 18 | . 2 16 . . AOE 2 | . . . . 2 Classes Destroyed 8 | . 2 3 2 1 Mechanic 1 | . . 1 . . Operator 2 | . . 1 . 1 Watcher 1 | . . . 1 . Swarmer 15 | . 2 9 2 2 Grunt 9 | . 3 2 2 2 Brawler 1 | . . . . 1 Duelist 2 | . . . 1 1 Sentry 8 | . . 7 1 . Best Kill Streak 4 | . 2 4 3 4 Combat Bots Only 4 | . 2 4 3 4 Max Kills in Single Turn 2 | . 1 2 1 1 Gunslinging . | . . . . . Exploded 1 | . . . . 1 Melee 1 | . . . 1 1 Uniques/NPCs Destroyed . | . . . . . Combat | -11 -10 -9 -8 -7 -------- Run | Yrd Mat Mat Mat Fac Hostile Shots Fired 386 | . 29 100 49 208 Missed 111 | . 6 25 12 68 Damage Taken 3704 | . 222 984 579 1919 Core 1027 | . 37 147 141 702 Absorbed by Shields . | . . . . . Core Remaining (%) 80 | 100 85 63 74 . Volleys Fired 101 | . 17 55 17 12 Largest 2 | . 2 2 2 1 Hottest 70 | . 70 70 43 30 Shots Fired 176 | . 34 107 23 12 Gun 59 | . 22 9 23 5 Cannon 110 | . 12 98 . . Launcher 7 | . . . . 7 Special . | . . . . . Kinetic 169 | . 34 107 23 5 Thermal . | . . . . . Explosive 7 | . . . . 7 Electromagnetic . | . . . . . Robot Hit Streak 9 | . 6 9 8 8 Robot Miss Streak 4 | . 3 4 2 1 Penetration Max . | . . . . . Secondary Targets 1 | . 1 . . . Max Gunslinging Chain 1 | . 1 . . . Shots Hit Robots 138 | . 20 63 30 25 Core Hits 60 | . 8 29 11 12 Critical Kills . | . . . . . Critical Parts Destroyed 1 | . . . . 1 Critical Strikes 8 | . . 3 2 3 Blast 3 | . . 3 . . Smash 1 | . . . . 1 Sever 4 | . . . 2 2 Melee Attacks 39 | . . . 18 21 Impact 2 | . . . . 2 Slashing 37 | . . . 18 19 Piercing . | . . . . . Sneak Attacks 3 | . . . 2 1 Combat Hostiles . | . . . . . Follow-up Attacks . | . . . . . Damage Inflicted 3166 | . 237 1058 748 1123 Guns 503 | . 166 72 238 27 Cannons 1057 | . 71 986 . . Explosions 549 | . . . . 549 Melee 1057 | . . . 510 547 Ramming . | . . . . . Kinetic 1560 | . 237 1058 238 27 Thermal . | . . . . . Explosive 549 | . . . . 549 Electromagnetic . | . . . . . Impact 154 | . . . . 154 Slashing 903 | . . . 510 393 Piercing . | . . . . . Highest Corruption . | . . . . . Average Corruption . | . . . . . Corruption Purged . | . . . . . Corruption Blocked . | . . . . . Overload Shots . | . . . . . Overflow Damage 264 | . . . 73 191 Projectiles . | . . . . . Explosions 42 | . . . . 42 Melee 222 | . . . 73 149 Knockbacks 6 | . 1 5 . . Impact . | . . . . . Kinetic 5 | . 1 4 . . Secondary 1 | . . 1 . . Self-Inflicted Damage 258 | . . . . 258 Shots 7 | . . . . 7 Rammed . | . . . . . Targets Rammed 1 | . . . . 1 Kicked 1 | . . . . 1 Crushed . | . . . . . Highest Temperature 63 | . 36 63 2 . Average Temperature 16 | . 13 17 2 . Received Heat Transfer 912 | . 72 324 207 309 Siege Activations . | . . . . . Robots Corrupted . | . . . . . Combat Hostiles . | . . . . . Parts Fried 2 | . . . . 2 Impact Corruptions 2 | . . . . 2 Robots Melted . | . . . . . Combat Hostiles . | . . . . . Parts Melted . | . . . . . Heat Transferred . | . . . . . Parts Sabotaged . | . . . . . Parts Stolen . | . . . . . Parts Stripped . | . . . . . Power Chain Reactions . | . . . . . Alert | -11 -10 -9 -8 -7 ------- Run | Yrd Mat Mat Mat Fac Peak Influence 296 | . 190 296 228 187 Initial 116 | . . 18 116 35 Average 130 | . 55 181 115 114 Maximum Alert Level 1 | . . 1 1 . Low Security (%) 80 | . 100 51 97 100 Level 1 19 | . . 48 2 . Level 2 . | . . . . . Level 3 . | . . . . . Level 4 . | . . . . . Level 5 . | . . . . . High Security . | . . . . . Max Security . | . . . . . Squads Dispatched 6 | . 1 . 1 4 Investigation 2 | . 1 . 1 . Extermination . | . . . . . Reinforcement 1 | . . . . 1 Assault . | . . . . . Garrison 3 | . . . . 3 Intercept . | . . . . . Searches Triggered . | . . . . . Construction Impeded . | . . . . . Haulers Reinforced . | . . . . . Active Scanning Responses . | . . . . . Cargo Convoy Interrupts . | . . . . . Stealth | -11 -10 -9 -8 -7 --------- Run | Yrd Mat Mat Mat Fac Distress Signals 2 | . . 1 1 . Communications Jammed . | . . . . . Distress Signals . | . . . . . Times Spotted 62 | . 10 29 10 13 Peak Tracking Total 5 | . 4 5 4 5 Tactical Retreats 8 | . 2 3 1 2 Traps | -11 -10 -9 -8 -7 ------- Run | Yrd Mat Mat Mat Fac Traps Triggered 2 | . 1 . 1 . Indirectly . | . . . . . Trap Hack Attempts . | . . . . . Triggered . | . . . . . Disarmed . | . . . . . Reprogrammed 6 | . . . . 6 Reused 1 | . . . . 1 Traps Extracted . | . . . . . Installed . | . . . . . Triggered 1 | . . . . 1 Machines | -11 -10 -9 -8 -7 ---------- Run | Yrd Mat Mat Mat Fac Machines Disabled 2 | . 1 1 . . Max in Single Turn 1 | . 1 1 . . Machines Repaired . | . . . . . Machines Dismantled . | . . . . . Machines Sabotaged . | . . . . . Overloaded Fab Kills . | . . . . . Hacking | -11 -10 -9 -8 -7 --------- Run | Yrd Mat Mat Mat Fac Machines Accessed 2 | . . 1 . 1 Terminals 2 | . . 1 . 1 Fabricators . | . . . . . Repair Stations . | . . . . . Recycling Units . | . . . . . Scanalyzers . | . . . . . Garrison Access . | . . . . . Total Hacks 3 | . . 2 . 1 Successful 3 | . . 2 . 1 Failed . | . . . . . Catastrophic . | . . . . . Database Lockouts . | . . . . . Manual 1 | . . 1 . . Terminals 3 | . . 2 . 1 Fabricators . | . . . . . Repair Stations . | . . . . . Recycling Units . | . . . . . Scanalyzers . | . . . . . Garrison Access . | . . . . . Terminal Hacks 3 | . . 2 . 1 Reprogram Traps 1 | . . . . 1 Surveillance Status 1 | . . 1 . . Transport Status 1 | . . 1 . . Fabricator Hacks . | . . . . . Repair Station Hacks . | . . . . . Recycling Unit Hacks . | . . . . . Scanalyzer . | . . . . . Garrison Access Hacks . | . . . . . Unauthorized Hacks . | . . . . . Terminals . | . . . . . Fabricators . | . . . . . Repair Stations . | . . . . . Recycling Units . | . . . . . Scanalyzers . | . . . . . Garrison Access . | . . . . . Data Cores Recovered 1 | . . 1 . . Used 1 | . . 1 . . Hacking Detections 2 | . . 1 . 1 Full Trace Events . | . . . . . Feedback Events . | . . . . . Feedback Blocked . | . . . . . Robot Schematics Acquired . | . . . . . Robots Built . | . . . . . Authchips . | . . . . . Time . | . . . . . Total Robot Build Rating . | . . . . . Part Schematics Acquired . | . . . . . Parts Built . | . . . . . Authchips . | . . . . . Time . | . . . . . Total Part Build Rating . | . . . . . Parts Repaired . | . . . . . Time . | . . . . . Parts Recycled . | . . . . . Recycled Matter . | . . . . . Retrieved Matter . | . . . . . Retrieved Components . | . . . . . Parts Scanalyzed . | . . . . . Part Schematics Acquired . | . . . . . Parts Damaged . | . . . . . Bothacking | -11 -10 -9 -8 -7 ------------ Run | Yrd Mat Mat Mat Fac Used RIF Installer . | . . . . . Robots Hacked . | . . . . . Non-combat . | . . . . . Combat . | . . . . . Robot Hacks Applied . | . . . . . Relay Couplers Released . | . . . . . Fabnet Peak Effective % . | . . . . . Robots Rewired . | . . . . . Allies Hacked . | . . . . . Hacks Repelled . | . . . . . Allies | -11 -10 -9 -8 -7 -------- Run | Yrd Mat Mat Mat Fac Total Allies 3 | . . . . 3 Largest Group 3 | . . . . 3 Highest-Rated Group 93 | . . . . 93 Highest-Rated Ally 31 | . . . . 31 Total Orders . | . . . . . Ally Attacks 23 | . . . . 23 Total Damage 423 | . . . . 423 Kills 3 | . . . . 3 Allies Corrupted . | . . . . . Allies Melted . | . . . . . Intel | -11 -10 -9 -8 -7 ------- Run | Yrd Mat Mat Mat Fac Robot Analysis Total . | . . . . . Derelict Logs Recovered . | . . . . . Drone Launches . | . . . . . Drone Recoveries . | . . . . . Exploration | -11 -10 -9 -8 -7 ------------- Run | Yrd Mat Mat Mat Fac Turns Passed 2560 | . 445 1004 740 371 Spaces Moved 1305 | 1 260 435 448 161 Core 17 | . . 2 3 12 Treads 84 | . . 32 52 . Legs 1066 | 1 260 263 393 149 Wheels 138 | . . 138 . . Hover . | . . . . . Flight . | . . . . . Fastest Speed 105 | 120 120 105 120 120 Average Speed 152 | 120 136 175 139 151 Slowest Speed 550 | 120 190 550 550 550 Overloaded Moves . | . . . . . Propulsion Burnouts . | . . . . . Robots Hopped . | . . . . . Cave-ins Triggered . | . . . . . Exploration Rate (%) 19 | 1 27 39 28 2 Regions Visited 4 Branch Regions . Pre-discovered Areas . | . . . . . Known Exits Taken 1 | . . . 1 . Unknown Exits Taken 3 | 1 1 1 . . Scrap Searched . | . . . . . Spaces Dug 1 | . . . . 1 Terrain Destroyed 23 | . 20 . . 3 Melee 1 | . . . . 1 Projectile . | . . . . . AOE 22 | . 20 . . 2 Terrain Rammed . | . . . . . Walls Destroyed . | . . . . . Machines Disabled . | . . . . . Actions | -11 -10 -9 -8 -7 --------- Run | Yrd Mat Mat Mat Fac Total 1644 | . 317 574 511 242 Wait 147 | . 26 63 18 40 Move 1301 | . 259 434 447 161 Hop . | . . . . . Pick Up 14 | . 5 5 4 . Fast Attach 10 | . 1 1 3 5 Attach 13 | . . 9 2 2 Detach 1 | . . 1 . . Swap 11 | . 6 3 2 . Drop 6 | . 3 3 . . Fire 101 | . 17 55 17 12 Melee 39 | . . . 18 21 Ram . | . . . . . Kick 1 | . . . . 1 Crush . | . . . . . Escape Stasis . | . . . . . Rewire . | . . . . . Trap . | . . . . . Miscellaneous . | . . . . . Route ------- -11/Scrapyard -10/Materials -9/Materials (discovered 3 exits: [*Mat x2] / [*Min]) -8/Materials -7/Factory History --------- Turn | Location | Event 1 | -11/Scrapyard | Discovered new exit (range 0) 1 | -11/Scrapyard | Entered Materials 348 | -10/Materials | Build established: Mutant 402 | -10/Materials | Discovered new exit (range 12) 446 | -10/Materials | Entered another Materials area 446 | -9/Materials | Evolved 2 slots: Propulsion x1, Utility x1 731 | -9/Materials | Discovered new exit (range 11) 821 | -9/Materials | Discovered new exit (range 10) 1370 | -9/Materials | Lost 4 parts (2n2w) 1425 | -9/Materials | Discovered new exit (range 9) 1450 | -9/Materials | Entered another Materials area 1450 | -8/Materials | Evolved 2 slots: Weapon x2 1649 | -8/Materials | Lost 3 parts (2n1w) 1892 | -8/Materials | Met 7R-MNS 1954 | -8/Materials | Build established: Scavenger-Mutant 2050 | -8/Materials | Discovered new exit (range 11) 2189 | -8/Materials | Identified exit to Factory 2190 | -8/Materials | Entered Factory 2190 | -7/Factory | Evolved 2 slots: Propulsion x1, Utility x1 2275 | -7/Factory | Garrison activated, responded to threat 2327 | -7/Factory | Lost 3 allies 2485 | -7/Factory | Lost 7 parts (1p4n2w) 2533 | -7/Factory | Core integrity fell below 50% 2551 | -7/Factory | Core integrity fell below 20% 2561 | -7/Factory | Destroyed by Y-54 Guardian with Gatling Laser Last Messages --------------- Acquired Carbon-fiber Leg. U-05 Engineer lays Concrete. Kicked U-05 Engineer out of the way. Carbon-fiber Leg destroyed. Lgt. Assault Rifle destroyed. Acquired Power Maul. Carbon-fiber Leg destroyed. U-05 Engineer lays Concrete. Terrain Scan Processor destroyed. U-05 Engineer lays Concrete. Sneak attack on O-16 Technician. O-16 Technician suffers critical hit (Smash). Destroyed Lgt. Ion Engine. Destroyed Hover Unit. O-16 Technician system corrupted by crushing effect. Datajack fried. Hover Unit fried. O-16 Technician destroyed. U-05 Engineer lays Concrete. U-05 Engineer destroyed. Map ----- +----------------------------------------------------+ | ???????????????????# #?????????????????????? | | ???????????????????# #?????????????????????? | | ?????????????????### #?????????????????????? | | ?????????????????# #?????????????????????? | | ?????????????????# #?????????????????????? | | ?????????????????# +?????????????????????? | | ?????????????????# #?????????????????????? | | ?????????????????# #?????????????????????? | | ?????????????????### #?????????????????????? | | ???????????????????# #?????????????????????? | | ???????????????????# #?????????????????????? | | ???????????????????# #?????????????????????? | | ???????????????????# #?????????????????????? | | ????##############?# #?????????????????????? | | ???## ### ###???????????????????? | | ???#" # #???????????????????? | | ???#" # #???????????????????? | | ???#" # #???????????????????? | | ???#T #% #???????????????????? | | ???#" *+% #???????????????????? | | ???#" # #???????????????????? | | ???#" # #???????????????????? | | ???## # #???????????????????? | | ????# # Y #???????????????????? | | ????# ## ##???????????????????? | | ????# ## =%@ %#############+#??????? | | ????############### / s ??????? | | ?????????????###??# Y %% ?????? | | ??????????????????# [% ?????? | | ??????????????????# % ?????? | | ??????????????????# ?????? | | ??????????????????# ?????? | | ??????????????????# ?????? | | ??????????????????############+##########??????? | | ?????????????????????????????? ??????????????? | | ??????????????????????????????? ]#????????????? | | ??????????????????????????????? #????????????? | | ???????????????????????????????? #????????????? | | ????????????????????????????????? #????????????? | | ??????????????????????????????????#????????????? | | ???????????????????????????????????????????????? | | ???????????????????????????????????????????????? | | ???????????????????????????????????????????????? | | ???????????????????????????????????????????????? | | ???????????????????????????????????????????????? | | | | | | | | | | | +----------------------------------------------------+ Best States ------------- Heat Dissipation 34 Energy Generation 14 Energy Capacity 280 Matter Stores 300 Matter Capacity 300 Sight Range 16 Terrain Scan Density 85 Evasion (%) 55 Recoil Reduction 1 Item Schematics ----------------- None Robot Schematics ------------------ None Fabricated ------------ Nothing Alien Tech Used ----------------- None Achievements -------------- None Challenges ------------ None Game ------ Seed SubatomicGaussGenerator Manual? 0 Play Time 00:21:21 Cumulative 10.4 hours Start 2025.01.15 @ 13:40:33 End 2025.01.15 @ 14:31:27 Sessions 3 Manual Loads 0 Difficulty Rogue Special Mode None Game No. 21 Rogue 18 Adventurer 3 Explorer 0 Win Type - Total 0 Types 0/0/0/0/0/0/0/0/0 Lore% 7 Gallery% 13 Achievement% 14 Wizard Run 0 Options --------- Layout 0 ASCII 1 Keyboard 1 Movement Vi Keybinds 0 Fullscreen 2 Font 24/Smallcaps Map View 76x50 Zoom Use 0% Tactical HUD 0 Map Filters NONE Filters NONE Steam 1 RUN: e6c9cce5-662a-4020-af46-18eba44911d6